[Event "Titled Tuesday Blitz April 12 Late 2022"]
[White "Sheng, Joshua"]
[Black "Mickiewicz, Piotr"]
[WhiteFideId "2057360"]
[BlackFideId "1114891"]
[WhiteElo "2142"]
[BlackElo "2266"]
[Result "1-0"]
[Round "05"]
[TimeControl "180+1"]
[Date "2022.04.12"]
[WhiteClock "0:01:11"]
[BlackClock "0:00:14"]

1. e4 {[%clk 0:02:58]}  c5 {[%clk 0:02:59]} 2. Nf3 {[%clk 0:02:58]}  e6 {[%clk 0:02:58]} 3. d4 {[%clk 0:02:58]}  cxd4 {[%clk 0:02:58]} 4. Nxd4 {[%clk 0:02:59]}  Nf6 {[%clk 0:02:57]} 5. Nc3 {[%clk 0:02:59]}  d6 {[%clk 0:02:58]} 6. g4 {[%clk 0:02:59]}  a6 {[%clk 0:02:57]} 7. g5 {[%clk 0:02:58]}  Nfd7 {[%clk 0:02:58]} 8. Bg2 {[%clk 0:02:51]}  Nc6 {[%clk 0:02:52]} 9. Be3 {[%clk 0:02:50]}  Qc7 {[%clk 0:02:50]} 10. f4 {[%clk 0:02:48]}  Na5 {[%clk 0:02:39]} 11. Qd3 {[%clk 0:02:40]}  Nc4 {[%clk 0:02:37]} 12. O-O-O {[%clk 0:02:41]}  b5 {[%clk 0:02:32]} 13. e5 {[%clk 0:02:38]}  Nc5 {[%clk 0:02:16]} 14. Qe2 {[%clk 0:02:34]}  d5 {[%clk 0:02:14]} 15. b3 {[%clk 0:02:23]}  Nxe3 {[%clk 0:01:59]} 16. Qxe3 {[%clk 0:02:22]}  b4 {[%clk 0:01:56]} 17. Nce2 {[%clk 0:02:01]}  Bd7 {[%clk 0:01:55]} 18. Kb1 {[%clk 0:01:56]}  Rc8 {[%clk 0:01:52]} 19. f5 {[%clk 0:01:56]}  exf5 {[%clk 0:01:35]} 20. Nf4 {[%clk 0:01:54]}  Ne4 {[%clk 0:01:29]} 21. Nxd5 {[%clk 0:01:54]}  Nc3+ {[%clk 0:01:21]} 22. Nxc3 {[%clk 0:01:33]}  Qxc3 {[%clk 0:01:22]} 23. Qe2 {[%clk 0:01:34]}  Be6 {[%clk 0:00:58]} 24. Qxa6 {[%clk 0:01:24]}  Be7 {[%clk 0:00:44]} 25. Bc6+ {[%clk 0:01:21]}  Rxc6 {[%clk 0:00:35]} 26. Nxc6 {[%clk 0:01:19]}  O-O {[%clk 0:00:19]} 27. Nxe7+ {[%clk 0:01:19]}  Kh8 {[%clk 0:00:19]} 28. Nd5 {[%clk 0:01:13]}  Qxe5 {[%clk 0:00:17]} 29. Nxb4 {[%clk 0:01:11]}  f4 {[%clk 0:00:15]} 30. Qd6 {[%clk 0:01:11]}  Qxg5 {[%clk 0:00:14]} 31. Qxf8# {[%clk 0:01:11]} 1-0


[Site "https://www.chess.com"]

[Event "Titled Tuesday Blitz April 12 Late 2022"]
[White "Song, Michael"]
[Black "Aldokhin, Ivan"]
[WhiteFideId "2613190"]
[BlackFideId "24115720"]
[WhiteElo "2274"]
[BlackElo "2231"]
[Result "1-0"]
[Round "05"]
[TimeControl "180+1"]
[Date "2022.04.12"]
[WhiteClock "0:00:10"]
[BlackClock "0:00:06"]

1. e4 {[%clk 0:03:00]}  c5 {[%clk 0:02:54]} 2. Nc3 {[%clk 0:03:00]}  e6 {[%clk 0:02:53]} 3. f4 {[%clk 0:02:57]}  Nc6 {[%clk 0:02:50]} 4. Nf3 {[%clk 0:02:51]}  a6 {[%clk 0:02:50]} 5. d4 {[%clk 0:02:47]}  cxd4 {[%clk 0:02:48]} 6. Nxd4 {[%clk 0:02:46]}  Nxd4 {[%clk 0:02:37]} 7. Qxd4 {[%clk 0:02:43]}  Ne7 {[%clk 0:02:37]} 8. Be3 {[%clk 0:02:33]}  Nc6 {[%clk 0:02:36]} 9. Qd2 {[%clk 0:02:23]}  d6 {[%clk 0:02:23]} 10. O-O-O {[%clk 0:02:19]}  Be7 {[%clk 0:02:22]} 11. g4 {[%clk 0:02:14]}  b5 {[%clk 0:02:21]} 12. h4 {[%clk 0:02:06]}  Bb7 {[%clk 0:02:20]} 13. g5 {[%clk 0:02:03]}  Qa5 {[%clk 0:02:13]} 14. Kb1 {[%clk 0:02:01]}  Rd8 {[%clk 0:01:39]} 15. h5 {[%clk 0:01:55]}  b4 {[%clk 0:01:38]} 16. Ne2 {[%clk 0:01:54]}  d5 {[%clk 0:01:36]} 17. Bg2 {[%clk 0:01:29]}  dxe4 {[%clk 0:01:27]} 18. Qe1 {[%clk 0:01:20]}  O-O {[%clk 0:01:12]} 19. Rxd8 {[%clk 0:01:17]}  Rxd8 {[%clk 0:01:02]} 20. Bxe4 {[%clk 0:01:15]}  Bc5 {[%clk 0:00:32]} 21. Nc1 {[%clk 0:01:09]}  Bxe3 {[%clk 0:00:29]} 22. Qxe3 {[%clk 0:01:08]}  Qc7 {[%clk 0:00:29]} 23. Nd3 {[%clk 0:01:00]}  Nd4 {[%clk 0:00:25]} 24. Rc1 {[%clk 0:00:43]}  a5 {[%clk 0:00:20]} 25. g6 {[%clk 0:00:39]}  fxg6 {[%clk 0:00:15]} 26. hxg6 {[%clk 0:00:38]}  Bxe4 {[%clk 0:00:09]} 27. Qxe4 {[%clk 0:00:37]}  hxg6 {[%clk 0:00:10]} 28. Qxg6 {[%clk 0:00:34]}  Qf7 {[%clk 0:00:10]} 29. Qg5 {[%clk 0:00:32]}  Qf6 {[%clk 0:00:10]} 30. Qxa5 {[%clk 0:00:31]}  Rb8 {[%clk 0:00:06]} 31. Qa7 {[%clk 0:00:24]}  Rd8 {[%clk 0:00:06]} 32. Qc5 {[%clk 0:00:20]}  Ne2 {[%clk 0:00:05]} 33. Rf1 {[%clk 0:00:18]}  Rd4 {[%clk 0:00:05]} 34. Qe5 {[%clk 0:00:16]}  Qxe5 {[%clk 0:00:03]} 35. fxe5 {[%clk 0:00:17]}  Rd5 {[%clk 0:00:03]} 36. Re1 {[%clk 0:00:14]}  Nd4 {[%clk 0:00:02]} 37. Nxb4 {[%clk 0:00:14]}  Rb5 {[%clk 0:00:03]} 38. c3 {[%clk 0:00:14]}  Nf3 {[%clk 0:00:04]} 39. a4 {[%clk 0:00:14]}  Rxb4 {[%clk 0:00:03]} 40. cxb4 {[%clk 0:00:13]}  Nxe1 {[%clk 0:00:04]} 41. a5 {[%clk 0:00:13]}  Nd3 {[%clk 0:00:05]} 42. a6 {[%clk 0:00:13]}  Nxb4 {[%clk 0:00:03]} 43. a7 {[%clk 0:00:13]}  Nd5 {[%clk 0:00:04]} 44. a8=Q+ {[%clk 0:00:13]}  Kf7 {[%clk 0:00:05]} 45. Qc6 {[%clk 0:00:11]}  Ne7 {[%clk 0:00:05]} 46. Qd7 {[%clk 0:00:11]}  g5 {[%clk 0:00:06]} 47. b4 {[%clk 0:00:11]}  g4 {[%clk 0:00:06]} 48. b5 {[%clk 0:00:12]}  g3 {[%clk 0:00:06]} 49. Qd3 {[%clk 0:00:10]}  Nf5 {[%clk 0:00:07]} 50. Qf3 {[%clk 0:00:11]}  Ke7 {[%clk 0:00:06]} 51. b6 {[%clk 0:00:11]}  Kd7 {[%clk 0:00:07]} 52. Qb7+ {[%clk 0:00:11]}  Ke8 {[%clk 0:00:05]} 53. Qc8+ {[%clk 0:00:10]}  Kf7 {[%clk 0:00:06]} 54. Qc7+ {[%clk 0:00:10]}  Kg6 {[%clk 0:00:06]} 55. b7 {[%clk 0:00:10]}  g2 {[%clk 0:00:06]} 56. Qc1 {[%clk 0:00:10]} 1-0


[Site "https://www.chess.com"]

[Event "Titled Tuesday Blitz April 12 Late 2022"]
[White "Stelmaszyk, Nico"]
[Black "Plazuelo Pascual, Juan"]
[WhiteFideId "16200462"]
[BlackFideId "32059566"]
[WhiteElo "2119"]
[BlackElo "2359"]
[Result "0-1"]
[Round "05"]
[TimeControl "180+1"]
[Date "2022.04.13"]
[WhiteClock "0:01:05"]
[BlackClock "0:00:10"]

1. e4 {[%clk 0:02:58]}  c5 {[%clk 0:02:58]} 2. Nf3 {[%clk 0:02:56]}  Nc6 {[%clk 0:02:57]} 3. c3 {[%clk 0:02:56]}  Nf6 {[%clk 0:02:48]} 4. e5 {[%clk 0:02:56]}  Nd5 {[%clk 0:02:49]} 5. d4 {[%clk 0:02:57]}  d6 {[%clk 0:02:50]} 6. exd6 {[%clk 0:02:53]}  cxd4 {[%clk 0:02:38]} 7. dxe7 {[%clk 0:02:40]}  Bxe7 {[%clk 0:02:26]} 8. cxd4 {[%clk 0:02:34]}  O-O {[%clk 0:02:26]} 9. Be2 {[%clk 0:02:30]}  Bb4+ {[%clk 0:02:04]} 10. Bd2 {[%clk 0:02:30]}  Nf4 {[%clk 0:02:04]} 11. O-O {[%clk 0:02:25]}  Nxe2+ {[%clk 0:02:00]} 12. Qxe2 {[%clk 0:02:25]}  Nxd4 {[%clk 0:01:53]} 13. Nxd4 {[%clk 0:02:24]}  Qxd4 {[%clk 0:01:53]} 14. Bc3 {[%clk 0:02:13]}  Qb6 {[%clk 0:01:42]} 15. Bxb4 {[%clk 0:02:01]}  Qxb4 {[%clk 0:01:41]} 16. Nc3 {[%clk 0:02:02]}  Be6 {[%clk 0:01:35]} 17. Qb5 {[%clk 0:01:59]}  Qxb5 {[%clk 0:01:32]} 18. Nxb5 {[%clk 0:02:00]}  Bc4 {[%clk 0:01:32]} 19. Nc7 {[%clk 0:02:00]}  Rac8 {[%clk 0:00:51]} 20. Rfc1 {[%clk 0:01:59]}  Rxc7 {[%clk 0:00:51]} 21. b3 {[%clk 0:02:00]}  Rfc8 {[%clk 0:00:52]} 22. bxc4 {[%clk 0:01:58]}  Rxc4 {[%clk 0:00:53]} 23. Rxc4 {[%clk 0:01:58]}  Rxc4 {[%clk 0:00:53]} 24. Kf1 {[%clk 0:01:59]}  Kf8 {[%clk 0:00:50]} 25. Rb1 {[%clk 0:01:53]}  b6 {[%clk 0:00:48]} 26. Rb3 {[%clk 0:01:51]}  Rc2 {[%clk 0:00:46]} 27. a3 {[%clk 0:01:49]}  Ke7 {[%clk 0:00:42]} 28. Rd3 {[%clk 0:01:50]}  g6 {[%clk 0:00:37]} 29. g4 {[%clk 0:01:50]}  Ke6 {[%clk 0:00:34]} 30. Kg2 {[%clk 0:01:50]}  b5 {[%clk 0:00:28]} 31. Rb3 {[%clk 0:01:48]}  a6 {[%clk 0:00:27]} 32. a4 {[%clk 0:01:46]}  Rc5 {[%clk 0:00:20]} 33. axb5 {[%clk 0:01:46]}  axb5 {[%clk 0:00:21]} 34. Rf3 {[%clk 0:01:43]}  b4 {[%clk 0:00:20]} 35. Kf1 {[%clk 0:01:36]}  Rb5 {[%clk 0:00:18]} 36. Rb3 {[%clk 0:01:28]}  Kd5 {[%clk 0:00:19]} 37. Ke2 {[%clk 0:01:27]}  Kc4 {[%clk 0:00:19]} 38. Rb1 {[%clk 0:01:27]}  b3 {[%clk 0:00:20]} 39. Kd2 {[%clk 0:01:28]}  b2 {[%clk 0:00:20]} 40. Kc2 {[%clk 0:01:27]}  Kd4 {[%clk 0:00:20]} 41. Rd1+ {[%clk 0:01:22]}  Ke4 {[%clk 0:00:20]} 42. Kb1 {[%clk 0:01:23]}  Rb7 {[%clk 0:00:20]} 43. Rd6 {[%clk 0:01:18]}  Kf3 {[%clk 0:00:18]} 44. g5 {[%clk 0:01:18]}  Kxf2 {[%clk 0:00:17]} 45. Rd4 {[%clk 0:01:18]}  Ke3 {[%clk 0:00:16]} 46. Rc4 {[%clk 0:01:16]}  Kd3 {[%clk 0:00:14]} 47. Rh4 {[%clk 0:01:15]}  Kc3 {[%clk 0:00:08]} 48. Rxh7 {[%clk 0:01:15]}  Rd7 {[%clk 0:00:05]} 49. Rh3+ {[%clk 0:01:15]}  Rd3 {[%clk 0:00:06]} 50. Rxd3+ {[%clk 0:01:06]}  Kxd3 {[%clk 0:00:07]} 51. Kxb2 {[%clk 0:01:07]}  Ke4 {[%clk 0:00:07]} 52. Kc3 {[%clk 0:01:00]}  Kf4 {[%clk 0:00:07]} 53. Kd4 {[%clk 0:00:54]}  Kxg5 {[%clk 0:00:08]} 54. Ke3 {[%clk 0:00:55]}  Kg4 {[%clk 0:00:08]} 55. Kf2 {[%clk 0:00:55]}  Kh3 {[%clk 0:00:08]} 56. Kg1 {[%clk 0:00:56]}  f5 {[%clk 0:00:09]} 57. Kh1 {[%clk 0:00:57]}  Kg4 {[%clk 0:00:08]} 58. Kg2 {[%clk 0:00:57]}  Kf4 {[%clk 0:00:09]} 59. Kf2 {[%clk 0:00:57]}  Ke4 {[%clk 0:00:09]} 60. Kg3 {[%clk 0:00:55]}  g5 {[%clk 0:00:08]} 61. Kf2 {[%clk 0:00:52]}  Kf4 {[%clk 0:00:09]} 62. Ke2 {[%clk 0:00:52]}  Kg4 {[%clk 0:00:09]} 63. Kf2 {[%clk 0:00:53]}  Kh3 {[%clk 0:00:08]} 64. Kg1 {[%clk 0:00:53]}  Kh4 {[%clk 0:00:04]} 65. Kg2 {[%clk 0:00:53]}  g4 {[%clk 0:00:04]} 66. Kf2 {[%clk 0:00:53]}  Kh3 {[%clk 0:00:04]} 67. Kg1 {[%clk 0:00:54]}  f4 {[%clk 0:00:04]} 68. Kh1 {[%clk 0:00:54]}  g3 {[%clk 0:00:02]} 69. hxg3 {[%clk 0:00:55]}  fxg3 {[%clk 0:00:03]} 70. Kg1 {[%clk 0:00:55]}  g2 {[%clk 0:00:03]} 71. Kf2 {[%clk 0:00:56]}  Kh2 {[%clk 0:00:04]} 72. Kf3 {[%clk 0:00:57]}  g1=Q {[%clk 0:00:05]} 73. Kf4 {[%clk 0:00:58]}  Qg3+ {[%clk 0:00:05]} 74. Kf5 {[%clk 0:00:58]}  Qh4 {[%clk 0:00:05]} 75. Ke6 {[%clk 0:00:59]}  Qg5 {[%clk 0:00:06]} 76. Kd7 {[%clk 0:00:59]}  Qf6 {[%clk 0:00:06]} 77. Kc8 {[%clk 0:01:00]}  Qe7 {[%clk 0:00:06]} 78. Kb8 {[%clk 0:01:00]}  Kg3 {[%clk 0:00:07]} 79. Ka8 {[%clk 0:01:01]}  Kf4 {[%clk 0:00:08]} 80. Kb8 {[%clk 0:01:02]}  Ke5 {[%clk 0:00:08]} 81. Ka8 {[%clk 0:01:03]}  Kd6 {[%clk 0:00:09]} 82. Kb8 {[%clk 0:01:04]}  Kc6 {[%clk 0:00:10]} 83. Ka8 {[%clk 0:01:05]}  Qb7# {[%clk 0:00:10]} 0-1


[Site "https://www.chess.com"]

[Event "Titled Tuesday Blitz April 12 Late 2022"]
[White "Svane, Frederik"]
[Black "Tillyaev, Ulugbek"]
[WhiteFideId "12923044"]
[BlackFideId "14202441"]
[WhiteElo "2459"]
[BlackElo "2377"]
[Result "1-0"]
[Round "05"]
[TimeControl "180+1"]
[Date "2022.04.12"]
[WhiteClock "0:00:03"]
[BlackClock "0:00:10"]

1. e4 {[%clk 0:03:00]}  c5 {[%clk 0:02:59]} 2. Nf3 {[%clk 0:03:01]}  Nc6 {[%clk 0:02:59]} 3. Bb5 {[%clk 0:03:01]}  g6 {[%clk 0:02:58]} 4. O-O {[%clk 0:03:02]}  Bg7 {[%clk 0:02:58]} 5. Re1 {[%clk 0:03:02]}  Nf6 {[%clk 0:02:58]} 6. e5 {[%clk 0:03:02]}  Nd5 {[%clk 0:02:58]} 7. Nc3 {[%clk 0:03:02]}  Nc7 {[%clk 0:02:42]} 8. Bxc6 {[%clk 0:03:02]}  dxc6 {[%clk 0:02:43]} 9. Ne4 {[%clk 0:03:02]}  b6 {[%clk 0:02:43]} 10. h3 {[%clk 0:03:03]}  O-O {[%clk 0:02:43]} 11. d3 {[%clk 0:03:03]}  Bf5 {[%clk 0:02:34]} 12. a4 {[%clk 0:02:58]}  c4 {[%clk 0:02:29]} 13. Ng3 {[%clk 0:02:35]}  cxd3 {[%clk 0:02:28]} 14. Nxf5 {[%clk 0:02:35]}  gxf5 {[%clk 0:02:29]} 15. cxd3 {[%clk 0:02:35]}  Qd5 {[%clk 0:02:23]} 16. d4 {[%clk 0:02:35]}  Rad8 {[%clk 0:02:22]} 17. Bg5 {[%clk 0:02:32]}  Rfe8 {[%clk 0:02:21]} 18. Qc2 {[%clk 0:02:31]}  Ne6 {[%clk 0:02:19]} 19. Qxf5 {[%clk 0:02:19]}  Nxd4 {[%clk 0:02:16]} 20. Nxd4 {[%clk 0:02:19]}  Qxd4 {[%clk 0:02:17]} 21. e6 {[%clk 0:02:20]}  f6 {[%clk 0:02:15]} 22. Be3 {[%clk 0:02:16]}  Qd5 {[%clk 0:02:14]} 23. Qg4 {[%clk 0:02:13]}  f5 {[%clk 0:02:12]} 24. Qg3 {[%clk 0:02:13]}  Kh8 {[%clk 0:02:11]} 25. Bg5 {[%clk 0:02:09]}  Rd6 {[%clk 0:02:07]} 26. Rad1 {[%clk 0:01:33]}  Qxd1 {[%clk 0:02:06]} 27. Rxd1 {[%clk 0:01:33]}  Rxd1+ {[%clk 0:02:06]} 28. Kh2 {[%clk 0:01:34]}  Rd6 {[%clk 0:02:07]} 29. Qe3 {[%clk 0:01:18]}  Bxb2 {[%clk 0:02:03]} 30. a5 {[%clk 0:01:13]}  Bd4 {[%clk 0:01:55]} 31. Qf4 {[%clk 0:01:12]}  c5 {[%clk 0:01:48]} 32. Qxf5 {[%clk 0:01:10]}  Bg7 {[%clk 0:01:01]} 33. Qf7 {[%clk 0:00:51]}  Rf8 {[%clk 0:01:00]} 34. Qxe7 {[%clk 0:00:51]}  Rd5 {[%clk 0:00:58]} 35. Be3 {[%clk 0:00:41]}  c4 {[%clk 0:00:54]} 36. a6 {[%clk 0:00:31]}  c3 {[%clk 0:00:54]} 37. Qxa7 {[%clk 0:00:30]}  c2 {[%clk 0:00:53]} 38. Qxb6 {[%clk 0:00:18]}  Be5+ {[%clk 0:00:43]} 39. f4 {[%clk 0:00:18]}  Rxf4 {[%clk 0:00:43]} 40. g3 {[%clk 0:00:06]}  Re4 {[%clk 0:00:35]} 41. e7 {[%clk 0:00:04]}  Bxg3+ {[%clk 0:00:22]} 42. Kxg3 {[%clk 0:00:05]}  Rxe7 {[%clk 0:00:22]} 43. Qb2+ {[%clk 0:00:04]}  Kg8 {[%clk 0:00:20]} 44. Bf4 {[%clk 0:00:05]}  Re2 {[%clk 0:00:17]} 45. Qb3 {[%clk 0:00:04]}  c1=Q {[%clk 0:00:09]} 46. Qxd5+ {[%clk 0:00:03]}  Kg7 {[%clk 0:00:10]} 47. Bxc1 {[%clk 0:00:03]} 1-0


[Site "https://www.chess.com"]

[Event "Titled Tuesday Blitz April 12 Late 2022"]
[White "Vasquez Schroeder, Rodrigo"]
[Black "Esipenko, Andrey"]
[WhiteFideId "3400042"]
[BlackFideId "24175439"]
[WhiteElo "2561"]
[BlackElo "2617"]
[Result "1/2-1/2"]
[Round "05"]
[TimeControl "180+1"]
[Date "2022.04.12"]
[WhiteClock "0:00:05"]
[BlackClock "0:00:03"]

1. e4 {[%clk 0:03:00]}  e5 {[%clk 0:02:55]} 2. Nf3 {[%clk 0:03:01]}  Nc6 {[%clk 0:02:55]} 3. Bb5 {[%clk 0:03:01]}  a6 {[%clk 0:02:53]} 4. Ba4 {[%clk 0:03:01]}  Nf6 {[%clk 0:02:52]} 5. O-O {[%clk 0:03:01]}  Be7 {[%clk 0:02:51]} 6. Re1 {[%clk 0:03:01]}  b5 {[%clk 0:02:51]} 7. Bb3 {[%clk 0:03:02]}  O-O {[%clk 0:02:51]} 8. a4 {[%clk 0:02:58]}  b4 {[%clk 0:02:47]} 9. d4 {[%clk 0:02:56]}  d6 {[%clk 0:02:47]} 10. dxe5 {[%clk 0:02:52]}  Nxe5 {[%clk 0:02:47]} 11. Nbd2 {[%clk 0:02:52]}  Nfd7 {[%clk 0:02:41]} 12. Nc4 {[%clk 0:02:44]}  Bf6 {[%clk 0:02:32]} 13. Nfxe5 {[%clk 0:02:37]}  Nxe5 {[%clk 0:02:32]} 14. Ne3 {[%clk 0:02:33]}  Bb7 {[%clk 0:02:22]} 15. Nd5 {[%clk 0:02:30]}  a5 {[%clk 0:02:12]} 16. Be3 {[%clk 0:02:13]}  Re8 {[%clk 0:02:10]} 17. f3 {[%clk 0:01:55]}  Bh4 {[%clk 0:02:05]} 18. Rf1 {[%clk 0:01:52]}  c5 {[%clk 0:02:02]} 19. Bf4 {[%clk 0:01:09]}  c4 {[%clk 0:01:54]} 20. Ba2 {[%clk 0:01:07]}  Rc8 {[%clk 0:01:49]} 21. Qd4 {[%clk 0:01:04]}  Rc5 {[%clk 0:01:30]} 22. Bxe5 {[%clk 0:00:51]}  Rxe5 {[%clk 0:01:30]} 23. Bxc4 {[%clk 0:00:49]}  Bxd5 {[%clk 0:01:30]} 24. Bxd5 {[%clk 0:00:49]}  Rxc2 {[%clk 0:01:19]} 25. Rab1 {[%clk 0:00:37]}  Qc7 {[%clk 0:01:12]} 26. Kh1 {[%clk 0:00:35]}  Bf6 {[%clk 0:01:06]} 27. Qd3 {[%clk 0:00:35]}  Rh5 {[%clk 0:01:02]} 28. Qxc2 {[%clk 0:00:29]}  Qxc2 {[%clk 0:00:59]} 29. Rbc1 {[%clk 0:00:30]}  Qc5 {[%clk 0:00:56]} 30. Rxc5 {[%clk 0:00:29]}  dxc5 {[%clk 0:00:57]} 31. b3 {[%clk 0:00:30]}  Bd4 {[%clk 0:00:56]} 32. f4 {[%clk 0:00:30]}  Kf8 {[%clk 0:00:55]} 33. g3 {[%clk 0:00:31]}  Rh6 {[%clk 0:00:54]} 34. e5 {[%clk 0:00:30]}  Rb6 {[%clk 0:00:53]} 35. Kg2 {[%clk 0:00:29]}  Rb8 {[%clk 0:00:47]} 36. Kf3 {[%clk 0:00:30]}  Rd8 {[%clk 0:00:48]} 37. Ke4 {[%clk 0:00:30]}  g6 {[%clk 0:00:49]} 38. g4 {[%clk 0:00:30]}  Ke7 {[%clk 0:00:50]} 39. f5 {[%clk 0:00:30]}  f6 {[%clk 0:00:49]} 40. fxg6 {[%clk 0:00:26]}  hxg6 {[%clk 0:00:21]} 41. exf6+ {[%clk 0:00:26]}  Bxf6 {[%clk 0:00:20]} 42. g5 {[%clk 0:00:26]}  Bxg5 {[%clk 0:00:20]} 43. Rf7+ {[%clk 0:00:27]}  Kd6 {[%clk 0:00:20]} 44. Bc4 {[%clk 0:00:21]}  Re8+ {[%clk 0:00:21]} 45. Kf3 {[%clk 0:00:22]}  Re3+ {[%clk 0:00:21]} 46. Kg4 {[%clk 0:00:22]}  Be7 {[%clk 0:00:22]} 47. Rg7 {[%clk 0:00:20]}  g5 {[%clk 0:00:20]} 48. Rg6+ {[%clk 0:00:21]}  Kd7 {[%clk 0:00:15]} 49. Ra6 {[%clk 0:00:20]}  Bd8 {[%clk 0:00:15]} 50. Bb5+ {[%clk 0:00:15]}  Kc8 {[%clk 0:00:11]} 51. Bc4 {[%clk 0:00:16]}  Re4+ {[%clk 0:00:07]} 52. Kf5 {[%clk 0:00:16]}  Rh4 {[%clk 0:00:08]} 53. Rc6+ {[%clk 0:00:14]}  Kb7 {[%clk 0:00:09]} 54. Rxc5 {[%clk 0:00:15]}  Rxh2 {[%clk 0:00:08]} 55. Rd5 {[%clk 0:00:15]}  Rf2+ {[%clk 0:00:09]} 56. Ke4 {[%clk 0:00:15]}  Rf4+ {[%clk 0:00:09]} 57. Ke5 {[%clk 0:00:14]}  Bc7+ {[%clk 0:00:09]} 58. Ke6 {[%clk 0:00:15]}  g4 {[%clk 0:00:09]} 59. Rb5+ {[%clk 0:00:14]}  Ka7 {[%clk 0:00:09]} 60. Bd5 {[%clk 0:00:14]}  Bb6 {[%clk 0:00:10]} 61. Bc6 {[%clk 0:00:12]}  Bd4 {[%clk 0:00:07]} 62. Rg5 {[%clk 0:00:12]}  Kb6 {[%clk 0:00:06]} 63. Bd5 {[%clk 0:00:10]}  Bf6 {[%clk 0:00:03]} 64. Rg6 {[%clk 0:00:10]}  Kc5 {[%clk 0:00:04]} 65. Bb7 {[%clk 0:00:05]}  Bd4 {[%clk 0:00:03]} 66. Rg5+ {[%clk 0:00:06]}  Kb6 {[%clk 0:00:04]} 67. Bd5 {[%clk 0:00:06]}  Bf6 {[%clk 0:00:03]} 68. Rg6 {[%clk 0:00:06]}  Kc5 {[%clk 0:00:04]} 69. Bb7 {[%clk 0:00:06]}  Bd8 {[%clk 0:00:04]} 70. Kd7 {[%clk 0:00:05]}  Bf6 {[%clk 0:00:03]} 71. Ke6 {[%clk 0:00:05]} 1/2-1/2


[Site "https://www.chess.com"]

[Event "Titled Tuesday Blitz April 12 Late 2022"]
[White "Ward, Ieuan C"]
[Black "Martic, Ivan"]
[WhiteFideId "406627"]
[BlackFideId "929301"]
[WhiteElo "2286"]
[BlackElo "2317"]
[Result "0-1"]
[Round "05"]
[TimeControl "180+1"]
[Date "2022.04.13"]
[WhiteClock "0:00:20"]
[BlackClock "0:01:05"]

1. d4 {[%clk 0:02:54]}  Nf6 {[%clk 0:02:59]} 2. c4 {[%clk 0:02:54]}  g6 {[%clk 0:02:59]} 3. Nc3 {[%clk 0:02:53]}  Bg7 {[%clk 0:03:00]} 4. Nf3 {[%clk 0:02:53]}  O-O {[%clk 0:02:58]} 5. Bg5 {[%clk 0:02:53]}  d6 {[%clk 0:02:56]} 6. e3 {[%clk 0:02:51]}  h6 {[%clk 0:02:54]} 7. Bh4 {[%clk 0:02:51]}  c5 {[%clk 0:02:54]} 8. d5 {[%clk 0:02:50]}  Bf5 {[%clk 0:02:52]} 9. Be2 {[%clk 0:02:47]}  Qb6 {[%clk 0:02:51]} 10. Qd2 {[%clk 0:02:45]}  g5 {[%clk 0:02:51]} 11. Bg3 {[%clk 0:02:44]}  Ne4 {[%clk 0:02:51]} 12. Nxe4 {[%clk 0:02:43]}  Bxe4 {[%clk 0:02:52]} 13. Bd3 {[%clk 0:02:09]}  Qxb2 {[%clk 0:02:45]} 14. Qxb2 {[%clk 0:02:00]}  Bxb2 {[%clk 0:02:46]} 15. Rd1 {[%clk 0:02:00]}  Bc3+ {[%clk 0:02:14]} 16. Ke2 {[%clk 0:02:00]}  Bh7 {[%clk 0:02:07]} 17. h4 {[%clk 0:01:36]}  g4 {[%clk 0:02:03]} 18. Nd2 {[%clk 0:01:34]}  Na6 {[%clk 0:01:52]} 19. Ne4 {[%clk 0:01:17]}  Bg7 {[%clk 0:01:50]} 20. a3 {[%clk 0:01:13]}  Nc7 {[%clk 0:01:42]} 21. Rb1 {[%clk 0:01:12]}  b6 {[%clk 0:01:41]} 22. f3 {[%clk 0:01:06]}  f5 {[%clk 0:01:32]} 23. Nf2 {[%clk 0:01:03]}  h5 {[%clk 0:01:33]} 24. Bf4 {[%clk 0:00:59]}  Rab8 {[%clk 0:01:30]} 25. fxg4 {[%clk 0:00:54]}  fxg4 {[%clk 0:01:26]} 26. Ne4 {[%clk 0:00:53]}  b5 {[%clk 0:01:23]} 27. cxb5 {[%clk 0:00:45]}  Nxd5 {[%clk 0:01:21]} 28. Rbf1 {[%clk 0:00:33]}  c4 {[%clk 0:01:07]} 29. Bc2 {[%clk 0:00:20]}  Bxe4 {[%clk 0:01:05]} 0-1


[Site "https://www.chess.com"]

[Event "Titled Tuesday Blitz April 12 Late 2022"]
[White "Wieczorek, Oskar"]
[Black "Kazakouski, Valery"]
[WhiteFideId "1133950"]
[BlackFideId "13507443"]
[WhiteElo "2319"]
[BlackElo "2524"]
[Result "0-1"]
[Round "05"]
[TimeControl "180+1"]
[Date "2022.04.12"]
[WhiteClock "0:01:17"]
[BlackClock "0:02:39"]

1. e4 {[%clk 0:02:57]}  c5 {[%clk 0:02:57]} 2. Nf3 {[%clk 0:02:57]}  a6 {[%clk 0:02:57]} 3. Nc3 {[%clk 0:02:49]}  e6 {[%clk 0:02:57]} 4. d4 {[%clk 0:02:49]}  b5 {[%clk 0:02:58]} 5. g3 {[%clk 0:02:48]}  cxd4 {[%clk 0:02:58]} 6. Nxd4 {[%clk 0:02:48]}  Bb7 {[%clk 0:02:59]} 7. Bg2 {[%clk 0:02:49]}  b4 {[%clk 0:02:59]} 8. Na4 {[%clk 0:02:49]}  Nf6 {[%clk 0:03:00]} 9. O-O {[%clk 0:02:49]}  Bxe4 {[%clk 0:03:00]} 10. Bxe4 {[%clk 0:02:48]}  Nxe4 {[%clk 0:03:01]} 11. Re1 {[%clk 0:02:49]}  Nc5 {[%clk 0:03:01]} 12. c3 {[%clk 0:02:49]}  Nc6 {[%clk 0:02:43]} 13. Nxc5 {[%clk 0:01:18]}  Bxc5 {[%clk 0:02:42]} 14. Nxc6 {[%clk 0:01:18]}  dxc6 {[%clk 0:02:42]} 15. Qa4 {[%clk 0:01:19]}  Qb6 {[%clk 0:02:39]} 16. cxb4 {[%clk 0:01:17]}  Bxf2+ {[%clk 0:02:39]} 0-1


[Site "https://www.chess.com"]